fUST/lending_fUST_20250918
["ID","MTS","AMOUNT","RATE_DAILY","PERIOD"]
[385960003,1758156632564,-202.10257448,0.00023434,2]
[385960005,1758156632574,-175.0,0.00023754,2]
[385960007,1758156632583,-300.0,0.00023754,2]
[385960009,1758156632592,-300.0,0.00023754,2]
[385960011,1758156632601,-480.0,0.00023754,2]
[385960013,1758156632610,-480.0,0.00023755,3]
[385960015,1758156632620,-480.0,0.00023755,3]
[385960017,1758156632629,-480.0,0.00023755,3]
[385960019,1758156632638,-480.0,0.00023755,3]
[385960020,1758156632647,-480.0,0.00023755,3]
[385960022,1758156632656,-706.42556719,0.00023961,2]
[385960024,1758156632666,-1405.842863,0.00023961,2]
[385960026,1758156632675,-211.0,0.00024,2]
[385960027,1758156632685,-480.0,0.00024027,3]
[385960028,1758156632695,-480.0,0.00024027,3]
[385960029,1758156632704,-480.0,0.00024029,3]
[385960030,1758156632714,-480.0,0.00024029,3]
[385960031,1758156632723,-389.14113274,0.00024029,3]
[385960032,1758156632732,-480.0,0.00024059,3]
[385960033,1758156632742,-480.0,0.00024059,3]
[385960034,1758156632751,-480.0,0.00024059,3]
[385960035,1758156632760,-480.0,0.00024059,3]
[385960036,1758156632770,-480.0,0.00024059,3]
[385960037,1758156632779,-480.0,0.00024059,3]
[385960038,1758156632788,-480.0,0.00024059,3]
[385960039,1758156632796,-480.0,0.00024059,3]
[385960040,1758156632806,-480.0,0.00024059,3]
[385960041,1758156632815,-480.0,0.00024059,3]
[385960042,1758156632829,-480.0,0.00024059,3]
[385960043,1758156632839,-480.0,0.00024059,3]
[385960044,1758156632848,-292.55888499,0.00024059,3]
[385960045,1758156632858,-480.0,0.00024059,3]
[385960046,1758156632867,-480.0,0.00024059,3]
[385960047,1758156632876,-480.0,0.00024059,3]
[385960048,1758156632886,-480.0,0.00024059,3]
[385960049,1758156632897,-480.0,0.00024059,3]
[385960050,1758156632907,-480.0,0.00024059,3]
[385960051,1758156632916,-480.0,0.00024059,3]
[385960052,1758156632925,-480.0,0.00024059,3]
[385960053,1758156632934,-480.0,0.00024059,3]
[385960054,1758156632943,-480.0,0.00024059,3]
[385960055,1758156632952,-480.0,0.00024059,3]
[385960056,1758156632961,-480.0,0.00024059,3]
[385960057,1758156632970,-480.0,0.00024059,3]
[385960058,1758156632980,-480.0,0.00024059,3]
[385960059,1758156632989,-480.0,0.00024059,3]
[385960060,1758156632999,-153.48056363,0.0002406,3]
[385960061,1758156633011,-326.51943637,0.0002406,3]
[385960062,1758156633020,-571.88,0.0002406,3]
[385960063,1758156633029,-480.0,0.0002406,3]
[385960064,1758156633039,-480.0,0.0002406,3]
[385960065,1758156633048,-480.0,0.0002406,3]
[385960066,1758156633058,-480.0,0.0002406,3]
[385960067,1758156633071,-480.0,0.0002406,3]
[385960068,1758156633088,-1444.14,0.0002406,3]
[385960069,1758156633097,-2819.5034015,0.00024061,2]
[385960070,1758156633106,-1101.5032606,0.00024061,2]
[385960071,1758156633116,-264.9789578,0.000241,2]
[385960072,1758156633125,-250.0,0.0002414,2]
[385960073,1758156633134,-500.0,0.00024206,2]
[385960074,1758156633143,-486.92,0.00024301,3]
[385960075,1758156633153,-480.0,0.00024302,3]
[385960076,1758156633163,-480.0,0.00024302,3]
[385960077,1758156633172,-3889.57,0.00024302,3]
[385960078,1758156633181,-480.0,0.00024302,3]
[385960079,1758156633191,-500.0,0.00024332,2]
[385960080,1758156633200,-96.88801361,0.00024332,2]
[385960081,1758156633212,-403.11198639,0.00024332,2]
[385960082,1758156633221,-500.0,0.00024332,2]
[385960083,1758156633230,-500.0,0.00024332,2]
[385960084,1758156633239,-500.0,0.00024332,2]
[385960085,1758156633249,-500.0,0.00024332,2]
[385960086,1758156633258,-500.0,0.00024332,2]
[385960087,1758156633267,-401.40324793,0.00024332,2]
[385960088,1758156633276,-500.0,0.00024332,2]
[385960089,1758156633286,-500.0,0.00024332,2]
[385960090,1758156633295,-500.0,0.00024332,2]
[385960091,1758156633304,-500.0,0.00024332,2]
[385960092,1758156633314,-250.0,0.00024332,2]
[385960093,1758156633323,-500.0,0.00024332,2]
[385960094,1758156633334,-456.67629245,0.00024332,2]
[385960095,1758156633349,-480.0,0.00024333,3]
[385960096,1758156633358,-480.0,0.00024333,3]
[385960097,1758156633368,-480.0,0.00024333,3]
[385960098,1758156633378,-480.0,0.00024333,3]
[385960099,1758156633387,-480.0,0.00024333,3]
[385960100,1758156633396,-69.93847323,0.00024333,3]
[385960309,1758156638871,-410.06152677,0.00024333,3]
[385960311,1758156638881,-480.0,0.00024333,3]
[385960313,1758156638891,-480.0,0.00024333,3]
[385960315,1758156638903,-606.70668137,0.00024333,3]
[385960317,1758156638914,-480.0,0.00024333,3]
[385960319,1758156638923,-480.0,0.00024333,3]
[385960321,1758156638934,-480.0,0.00024333,3]
[385960323,1758156638943,-480.0,0.00024333,3]
[385960325,1758156638952,-480.0,0.00024333,3]
[385960327,1758156638962,-365.02205345,0.00024333,3]
[385960329,1758156638971,-480.0,0.00024333,3]
[385960331,1758156638981,-480.0,0.00024333,3]
[385960333,1758156638991,-480.0,0.00024333,3]
[385960335,1758156639000,-480.0,0.00024333,3]
[385960337,1758156639010,-198.82728417,0.00024334,2]
[385960339,1758156639019,-480.0,0.00024334,3]
[385960341,1758156639028,-571.88,0.00024334,3]
[385960343,1758156639037,-480.0,0.00024334,3]
[385960345,1758156639046,-480.0,0.00024334,3]
[385960347,1758156639055,-480.0,0.00024334,3]
[385960349,1758156639064,-480.0,0.00024334,3]
[385960351,1758156639074,-480.0,0.00024334,3]
[385960353,1758156639083,-1444.14,0.00024334,3]
[385960354,1758156639092,-219.84406563,0.00024576,3]
[385960355,1758156639104,-260.15593437,0.00024576,3]
[385960356,1758156639215,-480.0,0.00024576,3]
[385960357,1758156639225,-1754.51855055,0.00024576,3]
[385960358,1758156639236,-2135.05144945,0.00024576,3]
[385960359,1758156639245,-480.0,0.00024576,3]
[385960360,1758156639254,-480.0,0.00024607,3]
[385960361,1758156639264,-480.0,0.00024607,3]
[385960362,1758156639274,-480.0,0.00024607,3]
[385960363,1758156639283,-352.00371699,0.00024607,3]
[385960364,1758156639294,-127.99628301,0.00024607,3]
[385960365,1758156639304,-480.0,0.00024607,3]
[385960366,1758156639313,-480.0,0.00024607,3]
[385960368,1758156639323,-480.0,0.00024608,3]
[385960370,1758156639332,-571.88,0.00024608,3]
[385960372,1758156639341,-228.37,0.00024608,3]
[385960374,1758156639351,-480.0,0.00024608,3]
[385960376,1758156639360,-480.0,0.00024608,3]
[385960377,1758156639371,-480.0,0.00024608,3]
[385960380,1758156639380,-1444.14,0.00024608,3]
[385960382,1758156639389,-186.79279952,0.000247,2]
[385960384,1758156639398,-500.0,0.00024754,2]
[385960386,1758156639408,-500.0,0.00024773,2]
[385960388,1758156639417,-168.0,0.00024783,2]
[385960390,1758156639426,-151.0,0.00024793,3]
[385960392,1758156639435,-151.0,0.00024793,2]
[385960393,1758156639445,-2044.24,0.00024799,2]
[385960396,1758156639454,-7283.88300838,0.000248,7]
[385960398,1758156639465,-325.21779113,0.000248,7]
[385960400,1758156639477,-562.22331977,0.000248,7]
[385960861,1758156643788,-2789.82019382,0.000248,7]
[385961173,1758156646769,-455.590158,0.0002406,3]
[385966656,1758156809782,161.0,0.00028,30]
[385966657,1758156810785,161.0,0.00028,30]
[385966658,1758156816195,202.10257448,0.000218,2]
[385966659,1758156824047,161.0,0.000232,7]
[385966660,1758156824904,161.0,0.000232,7]
[385966661,1758156825818,161.0,0.000232,7]
[385966662,1758156838155,161.0,0.000231,4]
[385966663,1758156838902,161.0,0.000231,4]
[385966664,1758156839915,161.0,0.000231,4]
[385966665,1758156857156,161.21,0.000231,5]
[385966666,1758157032218,207.88605084,0.000218,2]
[385966667,1758157154228,160.0,0.00022,5]
[385966668,1758157211959,207.88605084,0.000218,2]
[385966669,1758157376911,173.0,0.00023063,2]
[385966670,1758157382265,173.0,0.00022874,2]
[385966671,1758157386852,173.0,0.00022853,2]
[385966672,1758157394032,207.89283338,0.000218,2]
[385966673,1758157396782,173.0,0.0002286,2]
[385966674,1758157401301,173.0,0.00022959,2]
[385966675,1758157421117,173.0,0.00023077,2]
[385966676,1758157450348,173.0,0.0002307,2]
[385966677,1758157454943,173.0,0.00023089,2]
[385966687,1758157575008,207.89283327,0.000218,2]
[385966689,1758157666819,173.0,0.00023,2]
[385966690,1758157754922,207.89283327,0.000218,2]
[385966790,1758157843084,-173.0,0.00023213,2]
[385966792,1758157843095,-173.0,0.00023358,2]
[385966793,1758157843105,-154.0,0.00023453,2]
[385966804,1758157886897,220.30641932,0.000218,2]
[385966805,1758157906180,514.5,0.0002316,2]
[385966806,1758157932925,207.89283327,0.000218,2]
[385966807,1758158110945,207.89283327,0.000218,2]
[385966808,1758158289306,207.89283327,0.000218,2]
[385966810,1758158467115,207.89283327,0.000218,2]
[385966812,1758158644379,207.89283327,0.000218,2]
[385966817,1758158822386,207.89283327,0.000218,2]
[385966822,1758158854136,32238.78368781,0.000219,2]
[385966827,1758159003865,215.73438319,0.000218,2]
[385966828,1758159005587,5052.73920037,0.00022017,2]
[385966862,1758159032052,-19.0,0.00023453,2]
[385966863,1758159032066,-1340.87872435,0.00023491,2]
[385966864,1758159032078,-417.88717517,0.00023491,2]
[385966865,1758159032089,-1032.61708873,0.00023491,2]
[385966871,1758159032150,-504.25128941,0.00023491,2]
[385966875,1758159032161,-758.68254914,0.00023491,2]
[385966878,1758159032172,-963.6831732,0.00023491,2]
[385966880,1758159032182,-173.0,0.00023497,2]
[385966882,1758159032191,-173.0,0.00023534,2]
[385966884,1758159032202,-173.0,0.00023553,2]
[385966886,1758159032213,-173.0,0.00023574,2]
[385966888,1758159032222,-173.0,0.00023679,2]
[385966890,1758159032231,-500.0,0.00023819,2]
[385966892,1758159032240,-498.91375948,0.00023819,2]
[385966894,1758159032249,-151.13789202,0.00023961,2]
[385966896,1758159032258,-300.0,0.00023961,2]
[385966898,1758159032267,-300.0,0.00023961,2]
[385966900,1758159032276,-5555.18495058,0.00023961,2]
[385966902,1758159032286,-173.0,0.00023978,2]
[385966904,1758159032295,-161.9493691,0.000241,2]
[385966906,1758159032304,-161.9493691,0.000241,2]
[385966908,1758159032313,-161.9493691,0.000241,2]
[385966910,1758159032321,-161.9493691,0.000241,2]
[385966912,1758159032331,-161.9493691,0.000241,2]
[385966914,1758159032340,-322.7972007,0.000241,2]
[385966916,1758159032349,-772.0,0.00024128,2]
[385966918,1758159032358,-168.0,0.00024324,2]
[385966920,1758159032367,-480.0,0.00024331,3]
[385966922,1758159032377,-480.0,0.00024331,3]
[385966924,1758159032386,-480.0,0.00024331,3]
[385966925,1758159032394,-317.58469979,0.00024331,3]
[385966927,1758159032403,-480.0,0.00024331,3]
[385966929,1758159032412,-480.0,0.00024332,3]
[385966931,1758159032421,-152.175535,0.00024332,7]
[385966933,1758159032430,-152.184766,0.00024332,7]
[385966935,1758159032439,-151.0,0.00024332,7]
[385966937,1758159032449,-151.0,0.00024332,7]
[385966939,1758159032459,-153.332801,0.00024332,7]
[385966941,1758159032469,-480.0,0.00024332,3]
[385966943,1758159032477,-500.39,0.00024332,3]
[385966945,1758159032486,-480.0,0.00024332,3]
[385966946,1758159032495,-480.0,0.00024332,3]
[385966948,1758159032504,-3565.44,0.00024332,3]
[385966950,1758159032514,-480.0,0.00024332,3]
[385966953,1758159032524,-1263.62,0.00024332,3]
[385966955,1758159032534,-480.0,0.00024332,3]
[385966957,1758159032543,-480.0,0.00024332,3]
[385966959,1758159032552,-267.30043657,0.00024332,3]
[385966960,1758159032562,-151.0,0.00024333,7]
[385966962,1758159032571,-152.075614,0.00024333,7]
[385966964,1758159032580,-151.0,0.00024333,7]
[385966966,1758159032589,-151.0,0.00024333,7]
[385966968,1758159032599,-153.489102,0.00024333,7]
[385966970,1758159032608,-157.531731,0.00024333,7]
[385966972,1758159032617,-151.0,0.00024333,7]
[385966974,1758159032626,-156.809393,0.00024333,7]
[385966976,1758159032635,-618.1223713,0.00024506,2]
[385966978,1758159032646,-480.0,0.00024605,3]
[385966980,1758159032656,-480.0,0.00024605,3]
[385966982,1758159032665,-480.0,0.00024605,3]
[385966984,1758159032674,-480.0,0.00024605,3]
[385966986,1758159032684,-215.38414567,0.00024606,2]
[385966988,1758159032693,-154.23554,0.00024606,7]
[385966990,1758159032704,-480.0,0.00024606,3]
[385966992,1758159032713,-156.70228,0.00024606,7]
[385966994,1758159032722,-153.454992,0.00024606,7]
[385966996,1758159032732,-480.0,0.00024606,3]
[385966998,1758159032741,-500.39,0.00024606,3]
[385967000,1758159032750,-480.0,0.00024606,3]
[385967002,1758159032759,-480.0,0.00024606,3]
[385967004,1758159032768,-3565.44,0.00024606,3]
[385967006,1758159032778,-480.0,0.00024606,3]
[385967008,1758159032787,-1263.62,0.00024606,3]
[385967010,1758159032796,-287.359842,0.00024606,3]
[385967011,1758159032805,-480.0,0.00024606,3]
[385967013,1758159032814,-151.0,0.00024607,7]
[385967015,1758159032823,-151.0,0.00024607,7]
[385967017,1758159032833,-151.0,0.00024607,7]
[385967019,1758159032842,-343.55700246,0.00024693,2]
[385967020,1758159032851,-500.0,0.00024773,2]
[385967021,1758159032860,-238.509,0.00024773,8]
[385967022,1758159032870,-157.522356,0.0002478,7]
[385967023,1758159032879,-1959.06,0.0002478,2]
[385967024,1758159032888,-250.0,0.0002478,2]
[385967025,1758159032898,-217.40847694,0.0002478,2]
[385967026,1758159032907,-162.856818,0.00024781,7]
[385967027,1758159032917,-151.0,0.00024781,7]
[385967028,1758159032926,-21027.02420728,0.00024781,2]
[385967045,1758159038005,-480.0,0.00024331,3]
[385967046,1758159038015,-182.17583958,0.00024331,3]
[385967047,1758159038024,-194.2070068,0.00024605,3]
[385967048,1758159038034,-4929.25822584,0.00024781,2]
[385967176,1758159104905,330.85173172,0.00023,2]
[385967178,1758159149272,509.5,0.0002776,120]
[385967179,1758159167582,1514.12447933,0.00030279,50]
[385967180,1758159184720,209.07265096,0.000218,2]
[385967181,1758159197008,500.0,0.00023,2]
[385967182,1758159208600,500.0,0.00023,2]
[385967183,1758159259827,1002.0,0.00028,30]
[385967184,1758159364815,215.1546081,0.000218,2]
[385967185,1758159380932,217.9415827,0.00030277,50]
[385967186,1758159432473,301.1913873,0.00023654,30]
[385967188,1758159546557,215.01852292,0.000218,2]
[385967189,1758159730079,208.95191405,0.000218,2]
[385967190,1758159813189,150.28,0.000217,7]
[385967191,1758159826055,1945.0,0.00030278,50]
[385967201,1758159909289,206.20140263,0.000218,2]
[385967206,1758160109737,201.26918518,0.000218,2]
[385967207,1758160109805,201.26918514,0.00022983,2]
[385967297,1758160240132,-300.0,0.00023452,2]
[385967298,1758160240141,-47.21496584,0.00023452,2]
[385967299,1758160240176,-252.78503416,0.00023452,2]
[385967300,1758160240185,-1200.0,0.00023452,2]
[385967301,1758160240197,-2000.0,0.00023453,2]
[385967302,1758160240206,-2000.0,0.00023453,2]
[385967303,1758160240216,-2000.0,0.00023453,2]
[385967304,1758160240226,-708.167,0.00023453,2]
[385967305,1758160240235,-226.1845819,0.00023643,2]
[385967306,1758160240245,-292.61940769,0.00023982,2]
[385967307,1758160240256,-201.26918514,0.00024167,2]
[385967308,1758160240267,-169.77900935,0.00024334,2]
[385967309,1758160240278,-678.43692137,0.00024334,2]
[385967310,1758160240288,-1092.85187748,0.000245,2]
[385967311,1758160240298,-910.87,0.000246,7]
[385967312,1758160240310,-480.0,0.00024604,3]
[385967313,1758160240320,-480.0,0.00024604,3]
[385967314,1758160240330,-337.04438488,0.00024604,3]
[385967315,1758160240339,-480.0,0.00024604,3]
[385967316,1758160240348,-480.0,0.00024604,3]
[385967317,1758160240357,-480.0,0.00024604,3]
[385967318,1758160240366,-480.0,0.00024604,3]
[385967319,1758160240375,-481.82633595,0.00024605,3]
[385967320,1758160240384,-1179.28,0.00024605,3]
[385967321,1758160240394,-480.0,0.00024605,3]
[385967322,1758160240403,-272.11224826,0.00024621,2]
[385967323,1758160240413,-480.0,0.00024661,3]
[385967324,1758160240422,-3145.78953304,0.00024662,2]
[385967333,1758160246276,-480.0,0.00024604,3]
[385967334,1758160246286,-454.09942646,0.00024662,2]
[385967335,1758160246296,-151.0,0.00024662,7]
[385967336,1758160246305,-2056.08841023,0.00024681,2]
[385967337,1758160246315,-168.0,0.00024687,2]
[385967338,1758160246325,-542.62897567,0.00024699,2]
[385967339,1758160246334,-3286.73,0.00024779,3]
[385967340,1758160246343,-480.0,0.00024779,3]
[385967341,1758160246353,-155.0,0.00024799,2]
[385967342,1758160246362,-208.49729421,0.00024799,2]
[385967343,1758160246371,-500.0,0.00024799,2]
[385967344,1758160246380,-500.0,0.00024799,2]
[385967345,1758160246389,-500.0,0.00024799,2]
[385967346,1758160246398,-291.1829398,0.00024799,2]
[385967347,1758160246408,-500.0,0.00024799,2]
[385967348,1758160246417,-500.0,0.00024799,2]
[385967349,1758160246427,-500.0,0.00024799,2]
[385967350,1758160246436,-500.0,0.00024799,2]
[385967351,1758160246447,-299.33566917,0.00024799,2]
[385967352,1758160246457,-500.0,0.00024799,2]
[385967353,1758160246466,-244.128146,0.00024799,7]
[385967354,1758160246476,-1876.67622078,0.000248,7]
[385967355,1758160292050,201.26918514,0.000218,2]
[385967356,1758160292130,201.26918514,0.0002312,2]
[385967360,1758160482906,201.25831084,0.000218,2]
[385967362,1758160672331,201.24949373,0.000218,2]
[385967369,1758160858252,203.33051189,0.000218,2]
[385967371,1758161044789,203.33051171,0.000218,2]
[385967375,1758161143528,314.6749398,0.00030279,120]
[385967377,1758161235100,203.32719964,0.000218,2]
[385967378,1758161423469,203.671505,0.000218,2]
[385967524,1758161437717,-160.0,0.00023448,2]
[385967525,1758161437726,-203.67150498,0.00023606,2]
[385967526,1758161437736,-184.536543,0.0002369,2]
[385967527,1758161437745,-320.10407302,0.00023768,2]
[385967537,1758161438143,-429.80686398,0.00023768,2]
[385967538,1758161438152,-105.14220043,0.00024379,2]
[385967539,1758161438163,-74.08571737,0.00024379,2]
[385967540,1758161438173,-480.0,0.00024604,3]
[385967541,1758161438182,-242.0,0.0002466,2]
[385967542,1758161438191,-300.0,0.0002466,2]
[385967543,1758161438201,-276.05226008,0.0002466,2]
[385967544,1758161438212,-294.54076015,0.0002466,2]
[385967590,1758161592950,255.22475286,0.00028,30]
[385967591,1758161615738,205.58721603,0.000218,2]
[385967607,1758161705563,1000.0,0.0001,2]
[385967608,1758161711934,1500.0,0.00028,30]
[385967609,1758161796045,205.9388542,0.000218,2]
[385967620,1758161984718,205.66656245,0.000218,2]
[385967623,1758162171813,206.82919275,0.000218,2]
[385967624,1758162176028,10000.0,0.00023,2]
[385967625,1758162360574,206.82919266,0.000218,2]
[385967632,1758162492315,6136.19916429,0.00030283,120]
[385967633,1758162519663,576.82968115,0.00028,120]
[385967634,1758162528081,164.46982504,0.0002739,120]
[385967636,1758162547189,206.82919266,0.000218,2]
[385967796,1758162638379,-184.536543,0.00023799,2]
[385967797,1758162638389,-206.82919266,0.00024252,2]
[385967798,1758162638399,-324.675924,0.00024639,2]
[385967799,1758162638409,-160.0,0.00024661,3]
[385967800,1758162638418,-281.79343384,0.00024753,2]
[385967801,1758162638427,-300.0,0.00024797,2]
[385967802,1758162638436,-480.0,0.00024797,3]
[385967803,1758162638445,-495.71836654,0.00024797,3]
[385967804,1758162638454,-155.61,0.00024798,2]
[385967805,1758162638463,-484.94434806,0.00024798,3]
[385967806,1758162638472,-480.0,0.00024798,3]
[385967807,1758162638481,-504.18411693,0.00024798,3]
[385967808,1758162638490,-480.0,0.00024798,3]
[385967809,1758162638499,-505.60872519,0.00024798,3]
[385967810,1758162638510,-522.30917656,0.00024798,3]
[385967811,1758162638519,-480.0,0.00024798,3]
[385967812,1758162638528,-156.030069,0.00024798,7]
[385967813,1758162638537,-348.58943325,0.00024798,3]
[385967814,1758162638547,-151.0,0.00024798,7]
[385967815,1758162638556,-151.0,0.00024798,7]
[385967816,1758162638565,-151.0,0.00024798,7]
[385967817,1758162638574,-151.0,0.00024798,7]
[385967818,1758162638583,-155.035065,0.00024798,7]
[385967819,1758162638592,-151.0,0.00024798,7]
[385967820,1758162638601,-481.15540265,0.00024798,3]
[385967821,1758162638611,-221.496486,0.00024798,7]
[385967822,1758162638620,-151.0,0.00024798,7]
[385967823,1758162638629,-206.178295,0.00024798,7]
[385967824,1758162638638,-151.0,0.00024798,7]
[385967825,1758162638647,-151.0,0.00024798,7]
[385967826,1758162638656,-200.0,0.00024798,3]
[385967827,1758162638665,-151.0,0.00024798,7]
[385967828,1758162638674,-153.139077,0.00024798,7]
[385967829,1758162638683,-156.161499,0.00024798,7]
[385967830,1758162638692,-153.310014,0.00024798,7]
[385967831,1758162638701,-153.269503,0.00024798,7]
[385967832,1758162638710,-454.19714062,0.00024798,3]
[385967833,1758162638720,-229.1249839,0.00024798,3]
[385967834,1758162638729,-480.0,0.00024798,3]
[385967835,1758162638738,-151.0,0.00024798,7]
[385967836,1758162638747,-151.0,0.00024798,7]
[385967837,1758162638756,-501.19,0.00024798,3]
[385967838,1758162638765,-525.78866682,0.00024798,3]
[385967839,1758162638774,-520.06,0.00024798,3]
[385967840,1758162638784,-151.0,0.00024798,7]
[385967841,1758162638794,-151.0,0.00024798,7]
[385967842,1758162638805,-480.0,0.00024798,3]
[385967843,1758162638816,-510.0024571,0.00024798,3]
[385967844,1758162638827,-542.13128361,0.00024798,3]
[385967845,1758162638837,-480.0,0.00024798,3]
[385967846,1758162638846,-520.15305358,0.00024798,3]
[385967847,1758162638854,-504.38,0.00024798,3]
[385967848,1758162638864,-517.62786475,0.00024798,3]
[385967849,1758162638874,-497.85000965,0.00024798,3]
[385967850,1758162638883,-217.95274215,0.00024798,3]
[385967851,1758162638893,-3495.51,0.00024798,3]
[385967852,1758162638902,-500.0,0.00024798,3]
[385967853,1758162638911,-233.25367899,0.00024798,3]
[385967854,1758162638920,-151.13017212,0.00024798,3]
[385967855,1758162638929,-247.61310231,0.00024798,2]
[385967856,1758162638939,-1433.0,0.00024798,3]
[385967857,1758162638948,-480.0,0.00024798,3]
[385967858,1758162638957,-322.50845265,0.00024798,3]
[385967859,1758162638967,-480.0,0.00024798,3]
[385967860,1758162638976,-480.0,0.00024798,3]
[385967861,1758162638985,-612.0632125,0.00024798,3]
[385967862,1758162638995,-480.0,0.00024798,3]
[385967863,1758162639004,-422.14840769,0.00024799,2]
[385967864,1758162639014,-151.877763,0.00024799,7]
[385967865,1758162639023,-151.0,0.00024799,7]
[385967866,1758162639032,-159.303999,0.00024799,7]
[385967867,1758162639041,-151.0,0.00024799,7]
[385967868,1758162639051,-154.634377,0.00024799,7]
[385967869,1758162639059,-151.0,0.00024799,7]
[385967870,1758162639069,-152.716269,0.00024799,7]
[385967871,1758162639083,-153.491591,0.00024799,7]
[385967872,1758162639092,-151.0,0.00024799,7]
[385967873,1758162639101,-152.39961,0.00024799,7]
[385967874,1758162639110,-153.45343,0.00024799,7]
[385967875,1758162639119,-153.637608,0.00024799,7]
[385967876,1758162639128,-173.26107977,0.00024799,8]
[385967877,1758162639137,-151.0,0.00024799,7]
[385967878,1758162639147,-153.091473,0.00024799,7]
[385967879,1758162639156,-151.0,0.00024799,7]
[385967880,1758162639165,-242.720414,0.00024799,7]
[385967881,1758162639174,-152.717266,0.00024799,7]
[385967882,1758162639183,-151.0,0.00024799,7]
[385967883,1758162639192,-151.0,0.00024799,7]
[385967884,1758162639201,-151.0,0.00024799,2]
[385967885,1758162639210,-151.0,0.00024799,7]
[385967886,1758162639219,-151.0,0.00024799,7]
[385967887,1758162639228,-151.0,0.00024799,7]
[385967888,1758162639237,-151.0,0.00024799,7]
[385967889,1758162639246,-151.0,0.00024799,7]
[385967890,1758162639256,-154.466494,0.00024799,7]
[385967891,1758162639265,-151.0,0.00024799,7]
[385967892,1758162639274,-250.492225,0.00024799,7]
[385967893,1758162639283,-153.342142,0.00024799,7]
[385967894,1758162639292,-157.438937,0.00024799,7]
[385967895,1758162639301,-151.0,0.00024799,7]
[385967896,1758162639313,-151.0,0.00024799,7]
[385967897,1758162639324,-151.0,0.00024799,7]
[385967898,1758162639333,-151.0,0.00024799,7]
[385967899,1758162639342,-23162.17946612,0.000248,7]
[385967900,1758162639351,-151.0,0.000248,7]
[385967901,1758162639362,-151.0,0.000248,7]
[385967902,1758162639371,-151.0,0.000248,7]
[385967903,1758162639381,-151.0,0.000248,7]
[385967904,1758162639391,-201.982967,0.000248,7]
[385967905,1758162639400,-217.95274215,0.000248,7]
[385967906,1758162639410,-809.38027402,0.00024809,2]
[385967907,1758162639419,-2095.50337388,0.0002485,2]
[385967908,1758162639428,-34008.96985288,0.00024853,2]
[385967909,1758162639442,-151.0,0.00024853,7]
[385967910,1758162639451,-196.805978,0.00024853,7]
[385967911,1758162639461,-151.0,0.00024853,7]
[385967912,1758162639471,-151.0,0.00024853,7]
[385967913,1758162639481,-233.39271932,0.00024889,2]
[385967914,1758162639491,-160.0,0.00024889,2]
[385967915,1758162639501,-160.0,0.00024889,2]
[385967916,1758162639511,-160.0,0.00024891,2]
[385967917,1758162639521,-173.0,0.00024894,2]
[385967918,1758162639530,-217.95274215,0.00024894,2]
[385967919,1758162639539,-847.96496735,0.00024894,2]
[385967920,1758162639548,-281.7934338,0.0002499,2]
[385967921,1758162639557,-192.62149513,0.0002499,2]